fUSD/lending_fUSD_20250519
["ID","MTS","AMOUNT","RATE_DAILY","PERIOD"]
[361561921,1747613461751,-988.19,0.00013917,2]
[361561922,1747613461760,-400.0,0.00013917,2]
[361561923,1747613461770,-438.94,0.00013917,2]
[361561924,1747613461779,-416.27,0.00013917,2]
[361561925,1747613461790,-400.0,0.00013917,2]
[361561926,1747613461799,-400.0,0.00013917,2]
[361561927,1747613461809,-202.91084,0.00013917,2]
[361561928,1747613461819,-1000.51,0.00013917,2]
[361561929,1747613461828,-400.0,0.00013917,2]
[361561930,1747613461839,-202.91084,0.00013917,2]
[361561931,1747613461850,-424.72,0.00013917,2]
[361561932,1747613461862,-499.23,0.00013917,2]
[361561933,1747613461873,-400.0,0.00013917,2]
[361561934,1747613461883,-400.0,0.00013917,2]
[361561935,1747613461892,-151.0,0.00013917,2]
[361561936,1747613461902,-400.0,0.00013917,2]
[361561937,1747613461912,-400.0,0.00013917,2]
[361561938,1747613461924,-202.91084,0.00013917,2]
[361561939,1747613461933,-202.91084,0.00013917,2]
[361561940,1747613461942,-5047.22,0.00013917,2]
[361561941,1747613461952,-735.08,0.00013917,2]
[361561942,1747613461961,-400.0,0.00013917,2]
[361561943,1747613461971,-400.0,0.00013917,2]
[361561944,1747613461980,-1518.79,0.00013917,2]
[361561945,1747613461990,-560.27,0.00013917,2]
[361561946,1747613461999,-2062.8,0.00013917,2]
[361561947,1747613462008,-614.95,0.00013917,2]
[361561948,1747613462018,-1004.57,0.00013917,2]
[361561949,1747613462028,-155.274088,0.00013917,2]
[361561950,1747613462037,-8085.21,0.00013917,2]
[361561951,1747613462047,-609.68,0.00013917,2]
[361561952,1747613462056,-565.64,0.00013917,2]
[361561953,1747613462067,-400.0,0.00013917,2]
[361561954,1747613462078,-151.0,0.00013917,2]
[361561955,1747613462088,-151.0,0.00013917,2]
[361561956,1747613462097,-400.0,0.00013917,2]
[361561957,1747613462107,-620.99,0.00013917,2]
[361561958,1747613462122,-1177.76,0.00013917,2]
[361561959,1747613462131,-400.0,0.00013917,2]
[361561960,1747613462142,-534.27,0.00013917,2]
[361561961,1747613462152,-151.0,0.00013917,2]
[361561962,1747613462162,-6665.76,0.00013917,2]
[361561963,1747613462171,-3664.26,0.00013917,2]
[361561964,1747613462181,-400.0,0.00013917,2]
[361561965,1747613462191,-400.0,0.00013917,2]
[361561966,1747613462201,-769.96,0.00013917,2]
[361561967,1747613462225,-400.0,0.00013917,2]
[361561968,1747613462235,-400.0,0.00013917,2]
[361561969,1747613462244,-400.0,0.00013917,2]
[361561970,1747613462254,-471.92,0.00013917,2]
[361561971,1747613462263,-151.0,0.00013917,2]
[361561972,1747613462273,-400.0,0.00013917,2]
[361561973,1747613462282,-809.91,0.00013917,2]
[361561974,1747613462291,-1120.47,0.00013917,2]
[361561975,1747613462301,-1112.63,0.00013917,2]
[361561976,1747613462310,-151.0,0.00013917,2]
[361561977,1747613462320,-400.0,0.00013917,2]
[361561978,1747613462329,-851.08,0.00013917,2]
[361561979,1747613462340,-400.0,0.00013917,2]
[361561980,1747613462349,-1207.23,0.00013917,2]
[361561981,1747613462359,-2249.65,0.00013917,2]
[361561982,1747613462372,-150.0,0.00013917,2]
[361561983,1747613462382,-417.27,0.00013917,2]
[361561984,1747613462391,-7004.82,0.00013917,2]
[361561985,1747613462400,-2452.7,0.00013917,2]
[361561986,1747613462410,-4016.73,0.00013917,2]
[361561987,1747613462419,-1142.01,0.00013917,2]
[361561988,1747613462429,-578.41,0.00013917,2]
[361561989,1747613462438,-513.176896,0.00013917,2]
[361561990,1747613462447,-400.0,0.00013917,2]
[361561991,1747613462456,-675.34,0.00013917,2]
[361561992,1747613462465,-591.13,0.00013917,2]
[361561993,1747613462474,-400.0,0.00013917,2]
[361561994,1747613462484,-634.49,0.00013917,2]
[361561995,1747613462493,-997.28,0.00013917,2]
[361561996,1747613462502,-1182.83,0.00013917,2]
[361561997,1747613462511,-559.13,0.00013917,2]
[361561998,1747613462521,-400.0,0.00013917,2]
[361561999,1747613462535,-468.19,0.00013917,2]
[361562000,1747613462550,-513.176896,0.00013917,2]
[361562001,1747613462563,-10284.14,0.00013917,2]
[361562002,1747613462574,-400.0,0.00013917,2]
[361562003,1747613462586,-621.74,0.00013917,2]
[361562004,1747613462599,-1052.6,0.00013917,2]
[361562005,1747613462612,-205.727068,0.00013917,2]
[361562006,1747613462626,-809.21,0.00013917,2]
[361562007,1747613462640,-1394.77,0.00013917,2]
[361562008,1747613462655,-626.45,0.00013917,2]
[361562009,1747613462668,-17705.63,0.00013917,2]
[361562010,1747613462679,-400.0,0.00013917,2]
[361562011,1747613462691,-521.97,0.00013917,2]
[361562012,1747613462704,-968.31,0.00013917,2]
[361562013,1747613462717,-400.0,0.00013917,2]
[361562014,1747613462730,-1202.12,0.00013917,2]
[361562015,1747613462744,-11901.24,0.00013917,2]
[361562016,1747613462757,-400.0,0.00013917,2]
[361562017,1747613462772,-768.62,0.00013917,2]
[361562018,1747613462784,-549.6,0.00013917,2]
[361562019,1747613462797,-151.0,0.00013917,2]
[361562020,1747613462810,-1300.97,0.00013917,2]
[361562021,1747613462823,-850.12,0.00013917,2]
[361562022,1747613462836,-151.0,0.00013917,2]
[361562023,1747613462849,-1324.65,0.00013917,2]
[361562024,1747613462862,-265.40287191,0.00013917,2]
[361562025,1747613462874,-508.14,0.00013917,2]
[361562026,1747613462888,-60384.86866955,0.00013917,2]
[361562027,1747613463682,-463.9150343,0.00013917,2]
[361562028,1747613463713,-1564.17495273,0.00013917,2]
[361562029,1747613463727,-3470.53647137,0.00013917,2]
[361562030,1747613463742,-16950.16487205,0.00013917,2]
[361562031,1747613463754,-400.0,0.00013917,2]
[361562032,1747613463766,-660.04,0.00013917,2]
[361562033,1747613463779,-437.31,0.00013917,2]
[361562034,1747613463791,-400.0,0.00013917,2]
[361562035,1747613463803,-400.0,0.00013917,2]
[361562036,1747613463815,-586.15,0.00013917,2]
[361562037,1747613463828,-400.0,0.00013917,2]
[361562038,1747613463840,-1544.19,0.00013917,2]
[361562039,1747613463851,-400.0,0.00013917,2]
[361562040,1747613463867,-7893.34,0.00013917,2]
[361562041,1747613463880,-3092.99623044,0.00013917,2]
[361562042,1747613463904,-221.84180069,0.00013206,2]
[361562043,1747613463917,-236.02141764,0.00013917,2]
[361562044,1747613464475,-400.0,0.00013698,2]
[361562045,1747613464487,-351.44,0.00013698,2]
[361562046,1747613465179,-48.56,0.00013698,2]
[361562047,1747613465189,-717.72,0.00013698,2]
[361562048,1747613465198,-400.0,0.00013698,2]
[361562049,1747613465207,-400.0,0.00013698,2]
[361562050,1747613465217,-400.0,0.00013698,2]
[361562051,1747613465226,-400.0,0.00013698,2]
[361562052,1747613465234,-86.34343881,0.00013808,2]
[361562053,1747613465817,-64.65656119,0.00013808,2]
[361562054,1747613465835,-308.10661601,0.00013808,2]
[361562055,1747613466033,-409.61338399,0.00013808,2]
[361562056,1747613466043,-233.39,0.00013808,2]
[361562057,1747613466052,-400.0,0.00013808,2]
[361562058,1747613466063,-520.21,0.00013808,2]
[361562059,1747613466075,-2756.25195612,0.00013833,2]
[361562060,1747613466085,-195.77235192,0.00013917,2]
[361562061,1747613466095,-7595.05,0.00013917,2]
[361562062,1747613466105,-400.0,0.00013917,2]
[361562063,1747613466118,-400.0,0.00013917,2]
[361562064,1747613466127,-400.0,0.00013917,2]
[361562065,1747613466137,-1008.72,0.00013917,2]
[361562066,1747613466147,-400.0,0.00013917,2]
[361562067,1747613466157,-2371.88,0.00013917,2]
[361562068,1747613466166,-400.0,0.00013917,2]
[361562069,1747613466176,-450.0,0.00013917,2]
[361562070,1747613466185,-400.0,0.00013917,2]
[361562071,1747613466196,-757.72,0.00013917,2]
[361562072,1747613466205,-763.1,0.00013917,2]
[361562073,1747613466214,-2900.26,0.00013917,2]
[361562074,1747613466224,-402.58,0.00013917,2]
[361562075,1747613466234,-400.0,0.00013917,2]
[361562076,1747613466243,-1247.91,0.00013917,2]
[361562077,1747613466253,-15369.65,0.00013917,2]
[361562078,1747613466263,-400.0,0.00013917,2]
[361562079,1747613466272,-577.22,0.00013917,2]
[361562080,1747613466282,-1033.91,0.00013917,2]
[361562081,1747613466291,-400.0,0.00013917,2]
[361562082,1747613466302,-440.96,0.00013917,2]
[361562083,1747613466312,-1313.47,0.00013917,2]
[361562084,1747613466322,-400.0,0.00013917,2]
[361562085,1747613466332,-2670.23,0.00013917,2]
[361562086,1747613466342,-634.67,0.00013917,2]
[361562087,1747613466351,-452.95,0.00013917,2]
[361562088,1747613466362,-2096.21,0.00013917,2]
[361562089,1747613466374,-400.0,0.00013917,2]
[361562090,1747613466385,-151.0,0.00013917,2]
[361562091,1747613466397,-2234.5,0.00013917,2]
[361562092,1747613466406,-400.0,0.00013917,2]
[361562093,1747613466417,-400.0,0.00013917,2]
[361562094,1747613466426,-400.0,0.00013917,2]
[361562095,1747613466435,-1274.33,0.00013917,2]
[361562096,1747613466444,-1254.3,0.00013917,2]
[361562097,1747613466453,-1623.31,0.00013917,2]
[361562098,1747613466462,-479.73,0.00013917,2]
[361562099,1747613466471,-400.0,0.00013917,2]
[361562100,1747613466481,-873.7,0.00013917,2]
[361562101,1747613466490,-675.29,0.00013917,2]
[361562102,1747613466499,-400.0,0.00013917,2]
[361562103,1747613466508,-400.0,0.00013917,2]
[361562104,1747613466518,-553.98,0.00013917,2]
[361562105,1747613466528,-1658.29,0.00013917,2]
[361562106,1747613466537,-933.88,0.00013917,2]
[361562107,1747613466547,-151.0,0.00013917,2]
[361562108,1747613466556,-1103.05,0.00013917,2]
[361562109,1747613466566,-400.0,0.00013917,2]
[361562110,1747613466576,-400.0,0.00013917,2]
[361562111,1747613466586,-1557.02,0.00013917,2]
[361562112,1747613466595,-400.0,0.00013917,2]
[361562113,1747613466605,-480.45,0.00013917,2]
[361562114,1747613466616,-400.0,0.00013917,2]
[361562115,1747613466625,-2397.54,0.00013917,2]
[361562116,1747613466635,-582.36,0.00013917,2]
[361562117,1747613466644,-400.0,0.00013917,2]
[361562118,1747613466654,-3054.13,0.00013917,2]
[361562119,1747613466665,-400.0,0.00013917,2]
[361562120,1747613466675,-400.0,0.00013917,2]
[361562121,1747613466684,-247.03127168,0.00013917,2]
[361562122,1747613466694,-4629.03,0.00013917,2]
[361562123,1747613466704,-962.77,0.00013917,2]
[361562124,1747613466713,-599.04,0.00013917,2]
[361562125,1747613466723,-151.0,0.00013917,2]
[361562126,1747613466732,-400.0,0.00013917,2]
[361562127,1747613466742,-400.0,0.00013917,2]
[361562128,1747613466751,-400.0,0.00013917,2]
[361562129,1747613466761,-428.09,0.00013917,2]
[361562130,1747613466770,-2129.09,0.00013917,2]
[361562131,1747613466779,-1319.48,0.00013917,2]
[361562132,1747613466788,-699.75,0.00013917,2]
[361562133,1747613466798,-400.0,0.00013917,2]
[361562134,1747613466808,-4218.47,0.00013917,2]
[361562135,1747613466818,-400.0,0.00013917,2]
[361562136,1747613466827,-405.128534,0.00013917,2]
[361562137,1747613466836,-2795.26,0.00013917,2]
[361562138,1747613466845,-1839.7,0.00013917,2]
[361562139,1747613466855,-1676.69,0.00013917,2]
[361562140,1747613466865,-3470.68,0.00013917,2]
[361562141,1747613466875,-405.128534,0.00013917,2]
[361562142,1747613466884,-155.70331699,0.00013917,2]
[361562143,1747613466894,-400.0,0.00013917,2]
[361562144,1747613466903,-400.0,0.00013917,2]
[361562145,1747613466912,-710.47,0.00013917,2]
[361562146,1747613466922,-400.0,0.00013917,2]
[361562147,1747613466932,-400.0,0.00013917,2]
[361562148,1747613466942,-400.0,0.00013917,2]
[361562149,1747613466953,-1505.08,0.00013917,2]
[361562150,1747613466963,-657.64,0.00013917,2]
[361562151,1747613466973,-514.24,0.00013917,2]
[361562152,1747613466985,-866.42,0.00013917,2]
[361562153,1747613466995,-151.0,0.00013917,2]
[361562154,1747613467005,-955.68,0.00013917,2]
[361562155,1747613467014,-1240.808551,0.00013917,2]
[361562156,1747613467025,-3499.86,0.00013917,2]
[361562157,1747613467034,-400.0,0.00013917,2]
[361562158,1747613467044,-486.28,0.00013917,2]
[361562159,1747613467054,-729.19,0.00013917,2]
[361562160,1747613467065,-2324.82,0.00013917,2]
[361562161,1747613467077,-400.0,0.00013917,2]
[361562162,1747613467086,-1000.0,0.00013917,2]
[361562163,1747613467096,-1048.26,0.00013917,2]
[361562164,1747613467107,-744.47,0.00013917,2]
[361562165,1747613467119,-1057.27,0.00013917,2]
[361562166,1747613467129,-1045.41,0.00013917,2]
[361562167,1747613467139,-981.24,0.00013917,2]
[361562168,1747613467149,-1348.78,0.00013917,2]
[361562169,1747613467159,-400.0,0.00013917,2]
[361562170,1747613467168,-2662.34,0.00013917,2]
[361562171,1747613467178,-2065.89,0.00013917,2]
[361562172,1747613467187,-649.31,0.00013917,2]
[361562173,1747613467198,-777.56,0.00013917,2]
[361562174,1747613467208,-400.0,0.00013917,2]
[361562175,1747613467218,-615.46,0.00013917,2]
[361562176,1747613467227,-6906.69,0.00013917,2]
[361562177,1747613467236,-400.0,0.00013917,2]
[361562178,1747613467246,-628.31,0.00013917,2]
[361562179,1747613467255,-400.0,0.00013917,2]
[361562180,1747613467265,-717.84,0.00013917,2]
[361562181,1747613467274,-512.21,0.00013917,2]
[361562182,1747613467284,-1718.7,0.00013917,2]
[361562183,1747613467292,-698.56,0.00013917,2]
[361562184,1747613467302,-2294.53,0.00013917,2]
[361562185,1747613467311,-4211.62,0.00013917,2]
[361562186,1747613467320,-467.9,0.00013917,2]
[361562187,1747613467330,-400.0,0.00013917,2]
[361562188,1747613467339,-1081.48,0.00013917,2]
[361562189,1747613467349,-411.43152122,0.00013917,2]
[361562190,1747613467359,-151.0,0.00013917,2]
[361562191,1747613467371,-673.52,0.00013917,2]
[361562192,1747613467380,-490.06,0.00013917,2]
[361562193,1747613467389,-400.0,0.00013917,2]
[361562194,1747613467399,-528.44,0.00013917,2]
[361562195,1747613467409,-400.0,0.00013917,2]
[361562196,1747613467418,-361.089616,0.00013917,2]
[361562197,1747613467428,-400.0,0.00013917,2]
[361562198,1747613467438,-2568.45,0.00013917,2]
[361562199,1747613467447,-2073.35,0.00013917,2]
[361562200,1747613467457,-361.089616,0.00013917,2]
[361562201,1747613467467,-6429.79,0.00013917,2]
[361562202,1747613467477,-151.0,0.00013917,2]
[361562203,1747613467488,-612.06,0.00013917,2]
[361562204,1747613467497,-751.05,0.00013917,2]
[361562205,1747613467507,-10505.08,0.00013917,2]
[361562206,1747613467517,-41.64922955,0.00013917,2]
[361562207,1747613467532,-2332.07077045,0.00013917,2]
[361562208,1747613467542,-130.47904955,0.00013917,2]
[361562209,1747613467665,-400.0,0.00013808,2]
[361562210,1747613467676,-296.21095045,0.00013917,2]
[361562211,1747613467687,-556.78904955,0.00013917,2]
[361562212,1747613467700,-58.66095045,0.00013917,2]
[361562213,1747613467711,-2985.28,0.00013917,2]
[361562214,1747613467721,-36.34006985,0.00013917,2]
[361562215,1747613480109,300.0,0.000137,5]
[361562216,1747613482201,300.0,0.000138,5]
[361562217,1747613484614,300.0,0.000139,5]
[361562218,1747613490264,603.0,0.00027397,120]
[361562219,1747613593253,500.0,0.00025999,120]
[361562220,1747613597473,500.0,0.00025999,120]
[361562221,1747613730819,150.0,0.00025801,120]
[361562222,1747613791085,150.0,0.00027278,120]
[361562223,1747613834078,-200.0,0.00012555,2]
[361562224,1747613834117,-300.0,0.00012555,2]
[361562225,1747613834138,-502.88,0.00012601,2]
[361562226,1747613834161,-1610.81,0.00012628,2]
[361562227,1747613834185,-698.49,0.00012731,2]
[361562228,1747613834310,-501.51,0.00012731,2]
[361562229,1747613834332,-300.0,0.00012731,2]
[361562230,1747613834353,-300.0,0.00012731,2]
[361562231,1747613834430,-200.0,0.00012732,2]
[361562232,1747613834618,-2458.77,0.00012732,2]
[361562233,1747613834674,-300.0,0.000131,4]
[361562234,1747613834728,-500.0,0.00012732,2]
[361562235,1747613834787,-14216.97,0.00012732,2]
[361562236,1747613834839,-200.0,0.0001274,2]
[361562237,1747613834859,-439.62,0.00012748,2]
[361562238,1747613834895,-200.0,0.00012748,2]
[361562239,1747613858694,150.0,0.00012748,7]
[361562240,1747613940982,604.64,0.00012683,2]
[361562241,1747613960016,492.34,0.00010784,2]
[361562242,1747613970717,150.0,0.00027296,120]
[361562244,1747614136664,400.0,0.00027397,120]
[361562245,1747614150508,150.0,0.00027076,120]
[361562246,1747614210515,150.0,0.00027259,120]
[361562247,1747614239603,744.73,0.00012549,2]
[361562250,1747614321853,1142.88103,0.00012673,2]
[361562251,1747614334040,-313.29717659,0.00012737,2]
[361562252,1747614345669,174.17897,0.00012267,2]
[361562253,1747614345695,26.82103,0.00012267,2]
[361562254,1747614360617,-35.8668283,0.00012737,2]
[361562255,1747614360641,-272.86357278,0.00012748,2]
[361562256,1747614362431,-325.34701514,0.00012748,2]
[361562257,1747614365433,-200.0,0.00012748,2]
[361562258,1747614372787,438.0,0.0002739,120]
[361562259,1747614387495,250.0,0.0002739,120]
[361562260,1747614431127,-1674.34941208,0.00012748,2]
[361562261,1747614431151,-200.0,0.00012807,2]
[361562262,1747614431173,-500.0,0.00012866,2]
[361562263,1747614431194,-166.6,0.00012951,2]
[361562264,1747614431216,-21.21053593,0.00013,2]
[361562265,1747614431723,200.0,0.000131,4]
[361562266,1747614444287,200.0,0.000137,5]
[361562267,1747614445084,-618.40946407,0.00013,2]
[361562268,1747614445105,-492.34,0.00013048,2]
[361562269,1747614445124,-207.4,0.00013198,2]
[361562270,1747614445144,-500.0,0.000132,4]
[361562271,1747614445165,-51.32104999,0.00013205,2]
[361562272,1747614446381,200.0,0.000138,5]
[361562273,1747614448523,200.0,0.000139,5]
[361562274,1747614450480,150.0,0.00027394,120]
[361562593,1747614541512,150.0,0.00012698,2]
[361562594,1747614570776,150.0,0.00020288,120]
[361562613,1747614631681,-382.21,0.00012742,2]
[361562614,1747614631691,-22.2650197,0.00012748,2]
[361562616,1747614631702,-140.7049803,0.00012748,2]
[361562618,1747614631711,-1200.0,0.00013205,2]
[361562619,1747614631721,-200.0,0.00013205,2]
[361562621,1747614631730,-10484.60539971,0.00013206,2]
[361562623,1747614631742,-1681.21620004,0.00013206,2]
[361562624,1747614631780,-6580.134,0.00013206,2]
[361562625,1747614631904,-5686.34903778,0.00013206,2]
[361562626,1747614631913,-200.0,0.00013282,2]
[361562627,1747614631923,-1272.11,0.000133,2]
[361562628,1747614631934,-220.755,0.000133,2]
[361562629,1747614631943,-800.0,0.000133,4]
[361562630,1747614631952,-521.5,0.00013368,2]
[361562631,1747614631962,-1100.0,0.000134,4]
[361562632,1747614631971,-864.45616425,0.00013478,2]
[361562633,1747614631981,-1300.0,0.000135,4]
[361562634,1747614631991,-922.68565199,0.00013588,2]
[361562635,1747614632000,-150.0,0.00013597,2]
[361562636,1747614632010,-565.17262788,0.00013598,2]
[361562637,1747614632020,-152.1268468,0.00013598,2]
[361562638,1747614632030,-9709.51888988,0.00013598,2]
[361562639,1747614632042,-1635.393707,0.00013598,2]
[361562640,1747614632052,-165.46694718,0.00013598,2]
[361562641,1747614632061,-218.33974644,0.00013599,2]
[361562643,1747614632071,-200.0,0.000136,4]
[361562645,1747614632079,-9709.51888986,0.00013632,2]
[361562647,1747614632089,-1635.393707,0.00013632,2]
[361562649,1747614632098,-172.65019077,0.00013649,2]
[361562651,1747614632107,-9709.51888986,0.00013665,2]
[361562653,1747614632117,-1635.393707,0.00013665,2]
[361562655,1747614632126,-500.0,0.00013673,2]
[361562656,1747614632135,-500.0,0.00013673,2]
[361562657,1747614632146,-762.0,0.00013682,2]
[361562658,1747614632155,-151.08893105,0.0001369,2]
[361562659,1747614632165,-305.17965619,0.0001369,2]
[361562661,1747614632174,-151.0,0.0001369,2]
[361562663,1747614632183,-1199.20597015,0.0001369,2]
[361562665,1747614632193,-792.00254759,0.0001369,2]
[361562667,1747614632203,-151.0,0.0001369,2]
[361562669,1747614632212,-400.0,0.00013698,2]
[361562671,1747614632221,-380.0,0.00013698,2]
[361562674,1747614632230,-400.0,0.00013698,2]
[361562677,1747614632239,-400.0,0.00013698,2]
[361562679,1747614632248,-400.0,0.00013698,2]
[361562681,1747614632258,-400.0,0.00013698,2]
[361562683,1747614632267,-400.0,0.00013698,2]
[361562685,1747614632276,-400.0,0.00013698,2]
[361562687,1747614632286,-400.0,0.00013698,2]
[361562689,1747614632295,-400.0,0.00013698,2]
[361562691,1747614632305,-400.0,0.00013698,2]
[361562693,1747614632317,-400.0,0.00013698,2]
[361562695,1747614632326,-400.0,0.00013698,2]
[361562697,1747614632336,-400.0,0.00013698,2]
[361562699,1747614632345,-400.0,0.00013698,2]
[361562701,1747614632356,-400.0,0.00013698,2]
[361562703,1747614632366,-400.0,0.00013698,2]
[361562705,1747614632375,-400.0,0.00013698,2]
[361562707,1747614632384,-400.0,0.00013698,2]
[361562709,1747614632393,-400.0,0.00013698,2]
[361562711,1747614632403,-1178.11,0.00013698,2]
[361562713,1747614632412,-400.0,0.00013698,2]
[361562715,1747614632421,-400.0,0.00013698,2]
[361562717,1747614632430,-400.0,0.00013698,2]
[361562719,1747614632440,-400.0,0.00013698,2]
[361562721,1747614632451,-400.0,0.00013698,2]
[361562723,1747614632460,-400.0,0.00013698,2]
[361562724,1747614632470,-400.0,0.00013698,2]
[361562725,1747614632479,-400.0,0.00013698,2]
[361562726,1747614632488,-400.0,0.00013698,2]
[361562727,1747614632498,-400.0,0.00013698,2]
[361562728,1747614632507,-400.0,0.00013698,2]
[361562729,1747614632516,-400.0,0.00013698,2]
[361562730,1747614632525,-400.0,0.00013698,2]
[361562731,1747614632535,-400.0,0.00013698,2]
[361562732,1747614632545,-406.99911292,0.00013698,2]
[361562733,1747614632554,-400.0,0.00013698,2]
[361562734,1747614632566,-400.0,0.00013698,2]
[361562735,1747614632575,-400.0,0.00013698,2]
[361562736,1747614632584,-400.0,0.00013698,2]
[361562737,1747614632594,-400.0,0.00013698,2]
[361562738,1747614632603,-400.0,0.00013698,2]
[361562739,1747614632612,-405.99184155,0.00013698,2]
[361562740,1747614632622,-400.0,0.00013698,2]
[361562741,1747614632631,-400.0,0.00013698,2]
[361562742,1747614632641,-259.54175824,0.00013698,2]
[361562743,1747614632650,-400.0,0.00013698,2]
[361562744,1747614632660,-400.0,0.00013698,2]
[361562745,1747614632670,-551.72,0.00013698,2]
[361562746,1747614632680,-400.0,0.00013698,2]
[361562747,1747614632691,-400.0,0.00013698,2]
[361562748,1747614632700,-540.23502681,0.00013698,2]
[361562749,1747614632716,-400.0,0.00013698,2]
[361562750,1747614632726,-500.0,0.00013698,2]
[361562751,1747614632735,-520.34,0.00013698,2]
[361562752,1747614632744,-400.0,0.00013698,2]
[361562753,1747614632753,-523.36197866,0.00013698,2]
[361562754,1747614632763,-400.0,0.00013698,2]
[361562755,1747614632772,-400.0,0.00013698,2]
[361562756,1747614632782,-400.0,0.00013698,2]
[361562757,1747614632791,-400.0,0.00013698,2]
[361562758,1747614632801,-400.0,0.00013698,2]
[361562759,1747614632811,-400.0,0.00013698,2]
[361562760,1747614632823,-400.0,0.00013698,2]
[361562761,1747614632832,-400.0,0.00013698,2]
[361562762,1747614632841,-400.0,0.00013698,2]
[361562763,1747614632850,-400.0,0.00013698,2]
[361562764,1747614632859,-400.0,0.00013698,2]
[361562765,1747614632869,-400.0,0.00013698,2]
[361562766,1747614632878,-400.0,0.00013698,2]
[361562767,1747614632887,-177.62029189,0.00013698,2]
[361562768,1747614632897,-400.0,0.00013698,2]
[361562769,1747614632908,-400.0,0.00013698,2]
[361562770,1747614632918,-400.0,0.00013698,2]
[361562771,1747614632927,-525.8,0.00013698,2]
[361562772,1747614632937,-400.0,0.00013698,2]
[361562773,1747614632946,-686.3,0.00013698,2]
[361562774,1747614632955,-400.0,0.00013698,2]
[361562775,1747614632965,-400.0,0.00013698,2]
[361562776,1747614632975,-400.0,0.00013698,2]
[361562777,1747614632985,-400.0,0.00013698,2]
[361562778,1747614632994,-400.0,0.00013698,2]
[361562779,1747614633003,-400.0,0.00013698,2]
[361562780,1747614633013,-349.41580069,0.00013698,2]
[361562781,1747614633023,-400.0,0.00013698,2]
[361562782,1747614633033,-423.7,0.00013698,2]
[361562783,1747614633042,-400.0,0.00013698,2]
[361562784,1747614633052,-400.0,0.00013698,2]
[361562785,1747614633061,-400.0,0.00013698,2]
[361562786,1747614633072,-400.0,0.00013698,2]
[361562787,1747614633082,-400.0,0.00013698,2]
[361562788,1747614633092,-400.0,0.00013698,2]
[361562789,1747614633102,-400.0,0.00013698,2]
[361562790,1747614633111,-529.74,0.00013698,2]
[361562791,1747614633121,-400.0,0.00013698,2]
[361562792,1747614633132,-400.0,0.00013698,2]
[361562793,1747614633141,-400.0,0.00013698,2]
[361562794,1747614633152,-434.24,0.00013698,2]
[361562795,1747614633162,-400.0,0.00013698,2]
[361562796,1747614633172,-400.0,0.00013698,2]
[361562797,1747614633182,-400.0,0.00013698,2]
[361562798,1747614633192,-400.0,0.00013698,2]
[361562799,1747614633202,-658.34,0.00013698,2]
[361562800,1747614633213,-400.0,0.00013698,2]
[361562801,1747614633223,-202.20767618,0.00013698,2]
[361562802,1747614633234,-400.0,0.00013698,2]
[361562803,1747614633244,-862.45,0.00013698,2]